bitfinex-derivatives/quotes_BTCF0:USTF0_20250912
["timestamp","ask_amount","ask_price","bid_price","bid_amount"]
[1757647508328,1e-08,115220.0,115210.0,1.18434443]
[1757647508532,1e-08,115220.0,115210.0,1.97242443]
[1757647509032,0.01356987,115230.0,115220.0,0.0867577]
[1757647509335,0.35356987,115230.0,115220.0,1.10133397]
[1757647509927,0.35356987,115230.0,115220.0,0.94536492]
[1757647510231,0.35456987,115230.0,115220.0,0.94636492]
[1757647511125,0.35556987,115230.0,115220.0,1.1031654]
[1757647511835,0.35556987,115230.0,115220.0,1.12042702]
[1757647513035,0.35556987,115230.0,115220.0,1.90846702]
[1757647513424,0.35556987,115230.0,115220.0,1.90842702]
[1757647513622,0.35556987,115230.0,115220.0,1.82166932]
[1757647513831,0.37889987,115230.0,115220.0,0.8718198]
[1757647514038,0.37889987,115230.0,115220.0,1.82166932]
[1757647514237,0.37889987,115230.0,115220.0,1.90842702]
[1757647514938,0.37889987,115230.0,115220.0,2.17032702]
[1757647515332,0.37889987,115230.0,115220.0,2.17094681]
[1757647515532,0.37889987,115230.0,115220.0,1.38294681]
[1757647515728,0.37889987,115230.0,115220.0,2.17094681]
[1757647516232,0.37889987,115230.0,115220.0,2.17090681]
[1757647517641,0.37889987,115230.0,115220.0,2.01510633]
[1757647521740,0.37889987,115230.0,115220.0,1.14038863]
[1757647521935,0.37889987,115230.0,115220.0,0.89178141]
[1757647521936,0.62889987,115230.0,115220.0,0.89178141]
[1757647522245,0.75320348,115230.0,115220.0,0.89178141]
[1757647522433,0.75320348,115230.0,115220.0,1.67970141]
[1757647524134,0.75320348,115230.0,115220.0,0.89178141]
[1757647524330,0.75320348,115230.0,115220.0,1.67966141]
[1757647524535,0.75320348,115230.0,115220.0,0.8739]
[1757647524950,0.75320348,115230.0,115220.0,1.66178]
[1757647525748,0.75320348,115230.0,115220.0,1.66182]
[1757647526946,0.75320348,115230.0,115220.0,1.39992]
[1757647529049,0.62889987,115230.0,115220.0,1.39992]
[1757647529252,0.75320348,115230.0,115220.0,1.39992]
[1757647534860,0.62889987,115230.0,115220.0,1.39992]
[1757647535049,0.75320348,115230.0,115220.0,1.39992]
[1757647539361,0.50320348,115230.0,115220.0,1.39992]
[1757647541760,0.50320348,115230.0,115220.0,1.40481212]
[1757647546973,0.37889987,115230.0,115220.0,1.40481212]
[1757647547181,0.50320348,115230.0,115220.0,1.52911573]
[1757647547476,0.37889987,115230.0,115220.0,1.52911573]
[1757647549076,0.37889987,115230.0,115220.0,1.86587343]
[1757647549275,0.37889987,115230.0,115220.0,1.90341934]
[1757647549474,0.37889987,115230.0,115220.0,1.11549934]
[1757647549772,0.37889987,115230.0,115220.0,1.77907573]
[1757647549973,0.37889987,115230.0,115220.0,1.90337934]
[1757647550272,0.37889987,115230.0,115220.0,1.65477212]
[1757647550478,0.37889987,115230.0,115220.0,2.0275436]
[1757647551079,0.37889987,115230.0,115220.0,2.2894436]
[1757647551473,0.37889987,115230.0,115220.0,1.5015636]
[1757647551679,0.37889987,115230.0,115220.0,2.2894436]
[1757647554382,0.37889987,115230.0,115220.0,1.5015636]
[1757647554582,0.37889987,115230.0,115220.0,1.91659212]
[1757647554882,0.37889987,115230.0,115220.0,2.2893636]
[1757647555180,0.56528561,115230.0,115220.0,2.2893636]
[1757647555777,0.56528561,115230.0,115220.0,2.10297786]
[1757647556284,0.56528561,115230.0,115220.0,2.2893636]
[1757647557173,0.37889987,115230.0,115220.0,2.2893636]
[1757647557877,0.56528561,115230.0,115220.0,2.2893636]
[1757647559083,0.37889987,115230.0,115220.0,2.2893636]
[1757647559484,0.56528561,115230.0,115220.0,2.2893636]
[1757647560785,0.37889987,115230.0,115220.0,2.2893636]
[1757647562585,0.37889987,115230.0,115220.0,2.3761213]
[1757647562586,0.35556987,115230.0,115220.0,2.3761213]
[1757647563184,0.35556987,115230.0,115220.0,2.56250704]
[1757647563488,0.35556987,115230.0,115220.0,2.71830752]
[1757647563987,0.35556987,115230.0,115220.0,2.73567309]
[1757647568391,0.35556987,115230.0,115220.0,2.54928735]
[1757647570593,0.35556987,115230.0,115220.0,2.73567309]
[1757647570789,0.35556987,115230.0,115220.0,2.48567309]
[1757647571495,0.35556987,115230.0,115220.0,1.69787309]
[1757647571795,0.35556987,115230.0,115220.0,2.48547309]
[1757647573399,0.35556987,115230.0,115220.0,2.62947309]
[1757647576999,0.35556987,115230.0,115220.0,2.62943309]
[1757647577297,0.35556987,115230.0,115220.0,2.62957875]
[1757647580899,0.35556987,115230.0,115220.0,2.62989845]
[1757647582095,0.35556987,115230.0,115220.0,1.84237845]
[1757647582301,0.54195561,115230.0,115220.0,1.05246353]
[1757647582602,0.54195561,115230.0,115220.0,2.21271501]
[1757647583693,0.54195561,115230.0,115220.0,1.42523501]
[1757647583889,0.54195561,115230.0,115220.0,2.21267501]
[1757647585201,0.54195561,115230.0,115220.0,1.42523501]
[1757647585403,0.54195561,115230.0,115220.0,2.21267501]
[1757647586306,0.35556987,115230.0,115220.0,2.21267501]
[1757647587203,0.35556987,115230.0,115220.0,2.29943271]
[1757647587804,0.35456987,115230.0,115220.0,2.29843271]
[1757647588002,0.35556987,115230.0,115220.0,2.29843271]
[1757647590804,0.35556987,115230.0,115220.0,1.92566123]
[1757647591103,0.35556987,115230.0,115220.0,2.29843271]
[1757647591698,0.35556987,115230.0,115220.0,2.14263223]
[1757647592103,0.35556987,115230.0,115220.0,1.35519223]
[1757647592304,0.35556987,115230.0,115220.0,2.05583453]
[1757647592503,0.35556987,115230.0,115220.0,1.26843453]
[1757647592703,0.35556987,115230.0,115220.0,2.05583453]
[1757647593299,0.35556987,115230.0,115220.0,1.26843453]
[1757647593705,0.35556987,115230.0,115220.0,2.05583453]
[1757647594709,0.35556987,115230.0,115220.0,1.26843453]
[1757647594896,0.35556987,115230.0,115220.0,2.05583453]
[1757647595206,0.35556987,115230.0,115220.0,1.26843453]
[1757647595408,0.35556987,115230.0,115220.0,2.05583453]
[1757647595599,0.35556987,115230.0,115220.0,2.29839261]
[1757647596507,0.35556987,115230.0,115220.0,2.14259213]
[1757647597702,0.35556987,115230.0,115220.0,2.14255213]
[1757647599708,0.35556987,115230.0,115220.0,2.29865437]
[1757647600208,0.35556987,115230.0,115220.0,1.51129437]
[1757647600407,0.35556987,115230.0,115220.0,2.29865437]
[1757647600808,0.35556987,115230.0,115220.0,2.29861437]
[1757647601311,0.35556987,115230.0,115220.0,2.14251213]
[1757647601812,0.35556987,115230.0,115220.0,1.76974065]
[1757647602013,0.35556987,115230.0,115220.0,2.14251213]
[1757647604512,0.35556987,115230.0,115220.0,2.29861437]
[1757647606208,0.35556987,115230.0,115220.0,2.14251213]
[1757647607015,0.35556987,115230.0,115220.0,2.29861437]
[1757647610409,0.35556987,115230.0,115220.0,2.17436487]
[1757647611329,0.35556987,115230.0,115220.0,1.91246487]
[1757647611627,0.77110499,115230.0,115220.0,0.77199436]
[1757647611825,0.77110499,115230.0,115220.0,0.61589212]
[1757647612027,0.77110499,115230.0,115220.0,0.74015311]
[1757647615124,0.396844,115230.0,115220.0,0.74015311]
[1757647615328,0.37677987,115230.0,115220.0,0.8644141]
[1757647616732,0.37677987,115230.0,115220.0,1.02051634]
[1757647617122,0.37677987,115230.0,115220.0,0.89625535]
[1757647617422,0.37677987,115230.0,115220.0,1.68353535]
[1757647622332,0.37677987,115230.0,115220.0,1.78933311]
[1757647628336,0.37677987,115230.0,115220.0,1.66507212]
[1757647628538,0.37677987,115230.0,115220.0,1.78933311]
[1757647630938,0.37677987,115230.0,115220.0,1.66507212]
[1757647631138,0.37677987,115230.0,115220.0,1.78933311]
[1757647631441,0.37677987,115230.0,115220.0,1.94546003]
[1757647631636,0.37677987,115230.0,115220.0,1.03391904]
[1757647631832,0.37677987,115230.0,115220.0,1.94542003]
[1757647632140,0.37677987,115230.0,115220.0,1.78929311]
[1757647635244,0.37677987,115230.0,115220.0,1.9135541]
[1757647638747,0.37677987,115230.0,115220.0,1.66503212]
[1757647638944,0.37677987,115230.0,115220.0,1.9135541]
[1757647640047,0.37677987,115230.0,115220.0,2.06970322]
[1757647640850,0.37677987,115230.0,115220.0,1.9135541]
[1757647644745,0.37677987,115230.0,115220.0,2.06971634]
[1757647646349,0.37677987,115230.0,115220.0,1.9135541]
[1757647647440,0.37677987,115230.0,115220.0,2.06973967]
[1757647650743,0.37677987,115230.0,115220.0,1.9135541]
[1757647654344,0.37677987,115230.0,115220.0,1.66503212]
[1757647654745,0.37677987,115230.0,115220.0,1.9135541]
[1757647655353,0.37677987,115230.0,115220.0,1.78929311]
[1757647658147,0.37677987,115230.0,115220.0,1.78909311]
[1757647658345,0.37677987,115230.0,115220.0,1.00205311]
[1757647658543,0.37677987,115230.0,115220.0,1.78909311]
[1757647661558,0.37677987,115230.0,115220.0,1.94528049]
[1757647663163,0.37677987,115230.0,115220.0,1.78909311]
[1757647670366,0.56319083,115230.0,115220.0,2.03765404]
[1757647672763,0.37677987,115230.0,115220.0,2.03765404]
[1757647682273,0.37677987,115230.0,115220.0,1.66483212]
[1757647682474,0.37677987,115230.0,115220.0,2.03765404]
[1757647684279,0.37677987,115230.0,115220.0,2.03753404]
[1757647684479,0.56319083,115230.0,115220.0,2.03753404]
[1757647685382,0.37677987,115230.0,115220.0,2.03753404]
[1757647685864,0.56319083,115230.0,115220.0,2.03753404]
[1757647688171,0.37677987,115230.0,115220.0,2.03753404]
[1757647689073,0.37677987,115230.0,115220.0,2.19372142]
[1757647689684,0.37677987,115230.0,115220.0,2.28047902]
[1757647689878,0.37677987,115230.0,115220.0,2.12429164]
[1757647690077,0.35556987,115230.0,115220.0,2.12429164]
[1757647690377,0.35556987,115230.0,115220.0,2.5607026]
[1757647691279,0.35556987,115230.0,115220.0,2.37429164]
[1757647692275,0.35556987,115230.0,115220.0,2.53047902]
[1757647692879,0.35556987,115230.0,115220.0,2.37429164]
[1757647693477,0.35556987,115230.0,115220.0,2.11239164]
[1757647694871,0.35556987,115230.0,115220.0,2.11239923]
[1757647695583,0.35556987,115230.0,115220.0,2.13007547]
[1757647698383,0.35556987,115230.0,115220.0,2.31648643]
[1757647698585,0.35556987,115230.0,115220.0,2.47267381]
[1757647699084,0.35556987,115230.0,115220.0,2.47260329]
[1757647699387,0.35556987,115230.0,115220.0,2.73450329]
[1757647699685,0.35556987,115230.0,115220.0,2.71689757]
[1757647699888,0.35556987,115230.0,115220.0,2.73426681]
[1757647700182,0.35556987,115230.0,115220.0,2.17503393]
[1757647700379,0.35556987,115230.0,115220.0,2.54785585]
[1757647700579,0.35556987,115230.0,115220.0,1.94734681]
[1757647700775,0.35556987,115230.0,115220.0,2.73414681]
[1757647701283,0.35556987,115230.0,115220.0,1.94734681]
[1757647701682,0.35556987,115230.0,115220.0,2.73414681]
[1757647701988,0.35556987,115230.0,115220.0,2.48414681]
[1757647702590,0.35556987,115230.0,115220.0,2.32795943]
[1757647703288,0.35556987,115230.0,115220.0,2.32833013]
[1757647703487,0.35556987,115230.0,115220.0,2.48451751]
[1757647703882,0.35556987,115230.0,115220.0,1.69771751]
[1757647704087,0.35556987,115230.0,115220.0,2.48451751]
[1757647704286,0.35556987,115230.0,115220.0,2.14191917]
[1757647704692,0.35556987,115230.0,115220.0,1.35511917]
[1757647704887,0.35556987,115230.0,115220.0,2.14191917]
[1757647705289,0.35556987,115230.0,115220.0,2.14187917]
[1757647705492,0.35556987,115230.0,115220.0,1.35511917]
[1757647705686,0.35556987,115230.0,115220.0,2.14187917]
[1757647707093,0.35556987,115230.0,115220.0,1.35511917]
[1757647707286,0.35556987,115230.0,115220.0,2.14187917]
[1757647707592,0.35556987,115230.0,115220.0,2.29806655]
[1757647709482,0.35556987,115230.0,115220.0,1.51130655]
[1757647709686,0.35556987,115230.0,115220.0,2.29806655]
[1757647709889,0.35556987,115230.0,115220.0,2.14187917]
[1757647710694,0.35556987,115230.0,115220.0,2.28587917]
[1757647711592,0.03532,115260.0,115230.0,0.0867447]
[1757647711794,0.21532,115260.0,115250.0,0.37282192]
[1757647712094,0.21532,115260.0,115250.0,0.76641096]
[1757647712894,0.21532,115260.0,115250.0,0.77131067]
[1757647713197,0.21532,115260.0,115250.0,1.55803067]
[1757647713387,0.21532,115260.0,115250.0,1.74444163]
[1757647713898,0.21932,115260.0,115250.0,1.74444163]
[1757647714300,0.22132,115260.0,115250.0,1.74444163]
[1757647715002,0.21932,115260.0,115250.0,1.74444163]
[1757647715202,0.22032,115260.0,115250.0,1.8131629]
[1757647716402,0.22032,115260.0,115250.0,1.8131229]
[1757647717902,0.22032,115260.0,115250.0,0.84003194]
[1757647718304,0.40673096,115260.0,115250.0,1.62667194]
[1757647719005,0.22032,115260.0,115250.0,1.62667194]
[1757647719205,0.40673096,115260.0,115250.0,1.62667194]
[1757647719910,0.22032,115260.0,115250.0,1.62667194]
[1757647721909,0.22032,115260.0,115250.0,1.44026098]
[1757647722114,0.22032,115260.0,115250.0,1.62667194]
[1757647725317,0.40673096,115260.0,115250.0,1.62667194]
[1757647725916,0.22032,115260.0,115250.0,1.62667194]
[1757647728620,0.40673096,115260.0,115250.0,1.62667194]
[1757647729222,0.22032,115260.0,115250.0,1.62667194]
[1757647729522,0.40673096,115260.0,115250.0,1.62667194]
[1757647732323,0.22032,115260.0,115250.0,1.56447342]
[1757647736429,0.22032,115260.0,115250.0,1.44026098]
[1757647736631,0.22032,115260.0,115250.0,1.56447342]
[1757647738026,0.22032,115260.0,115250.0,1.56463342]
[1757647738222,0.22032,115260.0,115250.0,0.77783342]
[1757647738422,0.22032,115260.0,115250.0,1.56455342]
[1757647739321,0.22032,115260.0,115250.0,0.77783342]
[1757647739720,0.22032,115260.0,115250.0,1.56447342]
[1757647741721,0.22032,115260.0,115250.0,1.56439342]
[1757647742829,0.22032,115260.0,115250.0,1.68860586]
[1757647743031,0.22032,115260.0,115250.0,1.84479324]
[1757647743637,0.22032,115260.0,115250.0,1.05823324]
[1757647743836,0.22032,115260.0,115250.0,1.68856586]
[1757647744933,0.22032,115260.0,115250.0,1.56435342]
[1757647745544,0.22032,115260.0,115250.0,1.68856586]
[1757647745743,0.22032,115260.0,115250.0,1.56435342]
[1757647749345,0.24054497,115260.0,115250.0,1.56435342]
[1757647749846,0.24054497,115260.0,115250.0,0.77783342]
[1757647750346,0.36475741,115260.0,115250.0,1.56443342]
[1757647750542,0.24054497,115260.0,115250.0,0.77783342]
[1757647750847,0.24054497,115260.0,115250.0,1.56443342]
[1757647755653,0.24054497,115260.0,115250.0,1.44022098]
[1757647755853,0.24054497,115260.0,115250.0,1.56443342]
[1757647756248,0.22032,115260.0,115250.0,1.56443342]
[1757647757454,0.22032,115260.0,115250.0,1.44022098]
[1757647757654,0.22032,115260.0,115250.0,1.56443342]
[1757647758753,0.22032,115260.0,115250.0,1.56435342]
[1757647767369,0.22032,115260.0,115250.0,0.77783342]
[1757647767569,0.22032,115260.0,115250.0,1.56435342]
[1757647769770,0.24056041,115260.0,115250.0,1.44014098]
[1757647769972,0.24056041,115260.0,115250.0,1.56435342]
[1757647771973,0.24056041,115260.0,115250.0,0.65362098]
[1757647772273,0.24056041,115260.0,115250.0,1.57003342]
[1757647779173,0.24056041,115260.0,115250.0,1.7262208]
[1757647780380,0.22032,115260.0,115250.0,1.7440321]
[1757647783981,0.22032,115260.0,115250.0,1.74354305]
[1757647784180,0.22032,115260.0,115250.0,1.58735567]
[1757647788886,0.22032,115260.0,115250.0,1.46314323]
[1757647789091,0.22032,115260.0,115250.0,1.58635567]
[1757647792393,0.22032,115260.0,115250.0,1.58607567]
[1757647794296,0.22032,115260.0,115250.0,1.64817592]
[1757647794598,0.22032,115260.0,115250.0,0.85725592]
[1757647794792,0.22032,115260.0,115250.0,1.64801592]
[1757647795189,0.22032,115260.0,115250.0,0.85725592]
[1757647795398,0.22032,115260.0,115250.0,1.64793592]
[1757647797295,0.22032,115260.0,115250.0,1.83424861]
[1757647797595,0.22032,115260.0,115250.0,1.64793592]
[1757647804110,0.22032,115260.0,115250.0,1.83424861]
[1757647805216,0.22032,115260.0,115250.0,1.99043599]
[1757647805426,0.19848,115260.0,115250.0,1.99043599]
[1757647806308,0.19848,115260.0,115250.0,2.25233599]
[1757647809318,0.19848,115260.0,115250.0,2.09614861]
[1757647811325,0.19848,115260.0,115250.0,1.72352323]
[1757647811623,0.19848,115260.0,115250.0,2.09614861]
[1757647815619,0.19848,115260.0,115250.0,2.25233599]
[1757647815814,0.19848,115260.0,115250.0,1.87971061]
[1757647816018,0.19848,115260.0,115250.0,2.25233599]
[1757647817213,0.19848,115260.0,115250.0,1.46165599]
[1757647817418,0.19848,115260.0,115250.0,2.25237599]
[1757647819125,0.19848,115260.0,115250.0,1.46165599]
[1757647819422,0.19848,115260.0,115250.0,2.25237599]
[1757647819623,0.19848,115260.0,115250.0,2.09618861]
[1757647819824,0.19848,115260.0,115250.0,2.09602861]
[1757647820129,0.40653269,115260.0,115250.0,1.11915592]
[1757647820425,0.22022,115260.0,115250.0,1.90971592]
[1757647821625,0.40653269,115260.0,115250.0,1.90971592]
[1757647822818,0.40653269,115260.0,115250.0,2.0659033]
[1757647823727,0.40653269,115260.0,115250.0,1.90971592]
[1757647823921,0.40653269,115260.0,115250.0,1.11915592]
[1757647824118,0.40653269,115260.0,115250.0,1.64773592]
[1757647824425,0.22022,115260.0,115250.0,1.64773592]
[1757647824627,0.40653269,115260.0,115250.0,1.64773592]
[1757647826027,0.40653269,115260.0,115250.0,0.85725592]
[1757647826227,0.40653269,115260.0,115250.0,1.64761592]
[1757647826527,0.40653269,115260.0,115250.0,1.64741592]
[1757647826926,0.40653269,115260.0,115250.0,1.46110323]
[1757647827122,0.40653269,115260.0,115250.0,1.64741592]
[1757647828029,0.22022,115260.0,115250.0,1.64741592]
[1757647830329,0.22022,115260.0,115250.0,0.85725592]
[1757647831224,0.22022,115260.0,115250.0,1.64709592]
[1757647831823,0.22022,115260.0,115250.0,1.64705592]
[1757647832428,0.22022,115260.0,115250.0,0.85725592]
[1757647832629,0.19848,115260.0,115250.0,1.83332861]
[1757647833426,0.19848,115260.0,115250.0,1.83340861]
[1757647834333,0.19848,115260.0,115250.0,1.04356861]
[1757647834525,0.19848,115260.0,115250.0,1.83344861]
[1757647835329,0.19848,115260.0,115250.0,1.04356861]
[1757647835522,0.19848,115260.0,115250.0,1.83336861]
[1757647836528,0.19848,115260.0,115250.0,1.98955599]
[1757647837030,0.19848,115260.0,115250.0,1.19975599]
[1757647837230,0.19848,115260.0,115250.0,1.98947599]
[1757647837629,0.19848,115260.0,115250.0,1.19975599]
[1757647837830,0.19848,115260.0,115250.0,1.98935599]
[1757647838131,0.19848,115260.0,115250.0,1.19975599]
[1757647838334,0.19848,115260.0,115250.0,1.98935599]
[1757647838535,0.19848,115260.0,115250.0,1.19975599]
[1757647838725,0.19848,115260.0,115250.0,1.98931599]
[1757647839230,0.19848,115260.0,115250.0,1.19975599]
[1757647839430,0.19848,115260.0,115250.0,1.98927599]
[1757647839628,0.19848,115260.0,115250.0,1.19975599]
[1757647839835,0.19848,115260.0,115250.0,1.98923599]
[1757647840432,0.19848,115260.0,115250.0,1.83304861]
[1757647844629,0.19848,115260.0,115250.0,1.98923599]
[1757647845339,0.19848,115260.0,115250.0,1.83304861]
[1757647847039,0.19848,115260.0,115250.0,1.98923599]
[1757647848642,0.19848,115260.0,115250.0,1.83304861]
[1757647849843,0.19848,115260.0,115250.0,1.04356861]
[1757647850045,0.19848,115260.0,115250.0,1.83244861]
[1757647856342,0.19848,115260.0,115250.0,1.58402619]
[1757647862551,0.19848,115260.0,115250.0,1.70822915]
[1757647863357,0.19848,115260.0,115250.0,1.58402619]
[1757647868858,0.19848,115260.0,115250.0,1.45982323]
[1757647869051,0.19848,115260.0,115250.0,1.58402619]
[1757647873854,0.19848,115260.0,115250.0,1.56670394]
[1757647877562,0.19848,115260.0,115250.0,1.72289132]
[1757647879064,0.19848,115260.0,115250.0,1.59868836]
[1757647879362,0.19848,115260.0,115250.0,1.56670394]
[1757647891575,0.21966,115260.0,115250.0,1.56534394]
[1757647893567,0.21966,115260.0,115250.0,0.77782394]
[1757647893767,0.71806592,115260.0,115250.0,0.65362098]
[1757647893967,0.71806592,115260.0,115250.0,1.44114098]
[1757647894169,0.71806592,115260.0,115250.0,0.23589971]
[1757647899376,0.46806592,115260.0,115250.0,0.23589971]
[1757647900773,0.71806592,115260.0,115250.0,0.23589971]
[1757647900974,0.71806592,115260.0,115250.0,0.00589971]
[1757647912898,0.46966,115260.0,115250.0,0.00589971]
[1757647913197,0.71806592,115260.0,115250.0,0.00589971]
[1757647916399,0.84242626,115260.0,115250.0,0.00589971]
[1757647919306,1.62998626,115260.0,115250.0,0.00589971]
[1757647920110,0.84242626,115260.0,115250.0,0.00589971]
[1757647920405,1.25722,115260.0,115250.0,0.00589971]
[1757647920607,1.62998626,115260.0,115250.0,0.00589971]
[1757647921898,0.21966,115260.0,115250.0,0.19228284]
[1757647922302,0.40604313,115260.0,115250.0,0.35228284]
[1757647922697,0.40604313,115260.0,115250.0,0.36228284]
[1757647923502,0.40604313,115260.0,115250.0,0.00589971]
[1757647923705,0.40604313,115260.0,115250.0,0.36228284]
[1757647923905,0.59242626,115260.0,115250.0,0.36228284]
[1757647924208,0.40604313,115260.0,115250.0,0.36228284]
[1757647926008,0.21966,115260.0,115250.0,0.36228284]
[1757647926205,0.40604313,115260.0,115250.0,0.36228284]
[1757647927106,0.40604313,115260.0,115250.0,0.19228284]
[1757647927308,0.40604313,115260.0,115250.0,0.36228284]
[1757647928002,0.40604313,115260.0,115250.0,0.19228284]
[1757647928204,0.40604313,115260.0,115250.0,0.35228284]
[1757647928902,0.40604313,115260.0,115250.0,0.19228284]
[1757647929206,0.40604313,115260.0,115250.0,0.73228284]
[1757647933401,0.40604313,115260.0,115250.0,0.19228284]
[1757647933606,0.40604313,115260.0,115250.0,0.42228284]
[1757647936811,0.59242626,115260.0,115250.0,0.23589971]
[1757647937009,0.59242626,115260.0,115250.0,0.42228284]
[1757647937509,0.40604313,115260.0,115250.0,0.42228284]
[1757647938211,0.21966,115260.0,115250.0,0.42228284]
[1757647938509,0.40604313,115260.0,115250.0,0.42228284]
[1757647938810,0.59242626,115260.0,115250.0,0.23589971]
[1757647939013,0.84242626,115260.0,115250.0,0.23589971]
[1757647959319,0.59242626,115260.0,115250.0,0.23589971]
[1757647960616,0.59242626,115260.0,115250.0,0.00589971]
[1757647966518,1.37982626,115260.0,115250.0,0.00589971]
[1757647967016,1.37982626,115260.0,115250.0,0.19228284]
[1757647967520,1.37982626,115260.0,115250.0,0.00589971]
[1757647968323,0.59242626,115260.0,115250.0,0.00589971]
[1757647973223,0.61262057,115260.0,115250.0,0.00589971]
[1757647974222,0.61262057,115260.0,115250.0,0.19228284]
[1757647974422,0.23985431,115260.0,115250.0,1.19866597]
[1757647974615,0.23985431,115260.0,115250.0,1.2162649]
[1757647975017,0.23985431,115260.0,115250.0,1.02988177]
[1757647976110,0.42623744,115260.0,115250.0,1.02988177]
[1757647976520,0.42623744,115260.0,115250.0,1.81724177]
[1757647976716,0.40604313,115260.0,115250.0,1.79964284]
[1757647977619,0.21966,115260.0,115250.0,1.79964284]
[1757647978319,0.21966,115260.0,115250.0,1.73746667]
[1757647983424,0.19848,115260.0,115250.0,1.94840813]
[1757647983626,0.185,115260.0,115250.0,1.94840813]
[1757647984929,0.185,115260.0,115250.0,2.07261509]
[1757647985932,0.185,115260.0,115250.0,1.94840813]
[1757647986129,0.185,115260.0,115250.0,2.05754457]
[1757647986725,0.01293,115280.0,115270.0,0.0867195]
[1757647986935,0.17293,115280.0,115270.0,1.58302617]
[1757647987123,0.29293,115280.0,115270.0,1.70723313]
[1757647988129,0.29693,115280.0,115270.0,1.70723313]
[1757647988327,0.29693,115280.0,115270.0,1.58302617]
[1757647988524,0.284,115280.0,115270.0,1.70723313]
[1757647988728,0.284,115280.0,115270.0,1.70823313]
[1757647988729,0.288,115280.0,115270.0,1.70823313]
[1757647989327,0.288,115280.0,115270.0,1.95823313]
[1757647991037,0.288,115280.0,115270.0,1.70981921]
[1757647991338,0.288,115280.0,115270.0,1.95823313]
[1757647992430,0.288,115280.0,115270.0,2.06736957]
[1757647992629,0.288,115280.0,115270.0,1.28016957]
[1757647992827,0.288,115280.0,115270.0,1.95807313]
[1757647993928,0.286,115280.0,115270.0,1.95907313]
[1757647994336,0.251,115280.0,115270.0,1.95907313]
[1757647994634,0.216,115280.0,115270.0,1.95907313]
[1757647994827,0.215,115280.0,115270.0,1.95907313]
[1757647995034,0.18610726,115280.0,115270.0,1.95907313]
[1757647996434,0.03299386,115310.0,115290.0,0.0866994]
[1757647996634,0.19299386,115310.0,115300.0,0.24841392]
[1757647996829,0.33299386,115310.0,115300.0,1.50120696]
[1757647997037,0.33299386,115310.0,115300.0,1.50610667]
[1757647997436,0.35412386,115310.0,115300.0,1.50606667]
[1757647997737,0.35912386,115310.0,115300.0,1.50606667]
[1757647998333,0.35912386,115310.0,115300.0,1.51469899]
[1757647998541,0.35412386,115310.0,115300.0,1.51469899]
[1757647998738,0.35412386,115310.0,115300.0,1.51569899]
[1757647998739,0.35912386,115310.0,115300.0,1.51569899]
[1757647998939,0.36512386,115310.0,115300.0,1.51669899]
[1757647999142,0.36512386,115310.0,115300.0,1.64090595]
[1757648000542,0.36512386,115310.0,115300.0,1.79554453]
[1757648000740,0.34399386,115310.0,115300.0,1.79550453]
[1757648001040,0.36512386,115310.0,115300.0,0.92188753]
[1757648001239,0.36512386,115310.0,115300.0,1.58460057]
[1757648001440,0.36512386,115310.0,115300.0,0.79768057]
[1757648001636,0.48933082,115310.0,115300.0,1.58496057]
[1757648001945,0.34512,115310.0,115300.0,1.58496057]
[1757648002138,0.34512,115310.0,115300.0,1.70928753]
[1757648002645,0.34512,115310.0,115300.0,0.92188753]
[1757648002845,0.34512,115310.0,115300.0,1.69403112]
[1757648003040,0.34512,115310.0,115300.0,1.56982416]
[1757648003346,0.34512,115310.0,115300.0,1.69403112]
[1757648003532,0.71932696,115310.0,115300.0,0.78242416]
[1757648003738,0.71932696,115310.0,115300.0,0.90663112]
[1757648004049,0.71932696,115310.0,115300.0,1.61528057]
[1757648004947,0.71732696,115310.0,115300.0,0.82768057]
[1757648005241,0.71432696,115310.0,115300.0,1.49107361]
[1757648005747,0.71132696,115310.0,115300.0,1.49007361]
[1757648005940,0.71432696,115310.0,115300.0,1.49107361]
[1757648007546,0.71432696,115310.0,115300.0,0.70347361]
[1757648007747,0.71432696,115310.0,115300.0,1.49095361]
[1757648010148,0.71432696,115310.0,115300.0,1.61516057]
[1757648010346,0.59012,115310.0,115300.0,1.61516057]
[1757648013051,0.59012,115310.0,115300.0,0.70347361]
[1757648013249,0.59012,115310.0,115300.0,1.61488057]
[1757648015552,0.71432696,115310.0,115300.0,1.61488057]
[1757648016748,0.59012,115310.0,115300.0,1.61488057]
[1757648019155,0.59012,115310.0,115300.0,0.82768057]
[1757648019453,0.34012,115310.0,115300.0,1.61520057]
[1757648019854,0.34012,115310.0,115300.0,1.55520057]
[1757648020453,0.46432696,115310.0,115300.0,1.55520057]
[1757648022756,0.34012,115310.0,115300.0,1.55520057]
[1757648022948,0.46432696,115310.0,115300.0,1.55520057]
[1757648027555,0.46432696,115310.0,115300.0,1.43099361]
[1757648027751,0.46432696,115310.0,115300.0,1.55520057]
[1757648028457,0.34012,115310.0,115300.0,1.55520057]
[1757648030560,0.46432696,115310.0,115300.0,1.55520057]
[1757648032363,0.46432696,115310.0,115300.0,1.55468057]
[1757648033266,0.34012,115310.0,115300.0,1.55468057]
[1757648033564,0.34012,115310.0,115300.0,1.66363112]
[1757648033565,0.46432696,115310.0,115300.0,1.66363112]
[1757648034261,0.46432696,115310.0,115300.0,0.43242416]
[1757648034464,0.46432696,115310.0,115300.0,0.11585026]
[1757648034465,0.83853392,115310.0,115300.0,0.11585026]
[1757648034654,0.71432696,115310.0,115300.0,0.00689971]
[1757648035359,0.83853392,115310.0,115300.0,0.00689971]
[1757648036767,0.71432696,115310.0,115300.0,0.00689971]
[1757648037868,0.73478242,115310.0,115300.0,0.00689971]
[1757648038070,0.85898938,115310.0,115300.0,0.00689971]
[1757648038460,0.98305116,115310.0,115300.0,0.00689971]
[1757648041572,0.98244069,115310.0,115300.0,0.00689971]
[1757648041957,0.0129,115290.0,115280.0,0.10895055]
[1757648042159,0.7178857,115290.0,115280.0,0.32895055]
[1757648042363,0.7178857,115290.0,115280.0,0.22]
[1757648043171,0.74637893,115290.0,115280.0,0.10914096]
[1757648043366,0.74737893,115290.0,115280.0,0.002]
[1757648043669,1.53677893,115290.0,115280.0,0.002]
[1757648043871,1.53777893,115290.0,115280.0,0.002]
[1757648045464,1.52914036,115290.0,115280.0,0.002]
[1757648046872,0.73974036,115290.0,115280.0,0.002]
[1757648047072,1.52942036,115290.0,115280.0,0.002]
[1757648051373,1.52942036,115290.0,115260.0,0.07774407]
[1757648051571,0.22164785,115270.0,115260.0,0.54]
[1757648051769,0.56164785,115270.0,115260.0,0.54]
[1757648052075,0.56164785,115270.0,115260.0,0.72623785]
[1757648052570,0.37541,115270.0,115260.0,0.72623785]
[1757648052777,0.56164785,115270.0,115260.0,0.72623785]
[1757648053474,0.56264785,115270.0,115260.0,0.72923785]
[1757648054076,0.56264785,115270.0,115260.0,0.73793654]
[1757648054876,0.56264785,115270.0,115260.0,0.80866291]